[Event "Titled Tuesday Blitz June 21 Early 2022"]
[White "Mirzoev, Azer"]
[Black "Przybylski, Wojciech"]
[WhiteFideId "13400304"]
[BlackFideId "1117599"]
[WhiteElo "2525"]
[BlackElo "2133"]
[Result "1-0"]
[Round "08"]
[TimeControl "180+1"]
[Date "2022.06.21"]
[WhiteClock "0:01:33"]
[BlackClock "0:00:03"]

1. c4 {[%clk 0:03:00]}  Nf6 {[%clk 0:02:55]} 2. Nc3 {[%clk 0:03:00]}  e5 {[%clk 0:02:55]} 3. Nf3 {[%clk 0:03:00]}  Nc6 {[%clk 0:02:54]} 4. e3 {[%clk 0:03:00]}  Be7 {[%clk 0:02:53]} 5. a3 {[%clk 0:02:58]}  a5 {[%clk 0:02:51]} 6. Qc2 {[%clk 0:02:57]}  O-O {[%clk 0:02:50]} 7. Bd3 {[%clk 0:02:58]}  h6 {[%clk 0:02:44]} 8. O-O {[%clk 0:02:56]}  d6 {[%clk 0:02:42]} 9. b3 {[%clk 0:02:52]}  Bg4 {[%clk 0:02:40]} 10. Nh4 {[%clk 0:02:47]}  Re8 {[%clk 0:02:35]} 11. Nf5 {[%clk 0:02:46]}  Bf8 {[%clk 0:02:35]} 12. h3 {[%clk 0:02:43]}  Bxf5 {[%clk 0:01:43]} 13. Bxf5 {[%clk 0:02:42]}  g6 {[%clk 0:01:43]} 14. Bd3 {[%clk 0:02:41]}  Bg7 {[%clk 0:01:43]} 15. Bb2 {[%clk 0:02:41]}  Ne7 {[%clk 0:01:42]} 16. Be2 {[%clk 0:02:39]}  c6 {[%clk 0:01:42]} 17. b4 {[%clk 0:02:38]}  d5 {[%clk 0:01:40]} 18. cxd5 {[%clk 0:02:38]}  cxd5 {[%clk 0:01:38]} 19. Nb5 {[%clk 0:02:37]}  Rc8 {[%clk 0:01:35]} 20. Qb3 {[%clk 0:02:37]}  Ne4 {[%clk 0:01:31]} 21. Rfd1 {[%clk 0:02:35]}  Nc6 {[%clk 0:01:27]} 22. d3 {[%clk 0:02:34]}  Ng5 {[%clk 0:01:21]} 23. Bf1 {[%clk 0:02:26]}  Kh7 {[%clk 0:01:16]} 24. Rac1 {[%clk 0:02:21]}  Qd7 {[%clk 0:01:05]} 25. bxa5 {[%clk 0:02:04]}  Nxa5 {[%clk 0:01:05]} 26. Qb4 {[%clk 0:02:04]}  Nc6 {[%clk 0:00:57]} 27. Qd6 {[%clk 0:02:03]}  Rcd8 {[%clk 0:00:56]} 28. Qxd7 {[%clk 0:02:02]}  Rxd7 {[%clk 0:00:57]} 29. d4 {[%clk 0:01:59]}  e4 {[%clk 0:00:51]} 30. Nc3 {[%clk 0:01:57]}  Bf8 {[%clk 0:00:49]} 31. Na4 {[%clk 0:01:54]}  Ra8 {[%clk 0:00:44]} 32. Nb6 {[%clk 0:01:52]}  Rdd8 {[%clk 0:00:41]} 33. Nxa8 {[%clk 0:01:51]}  Rxa8 {[%clk 0:00:41]} 34. Bb5 {[%clk 0:01:51]}  Ne6 {[%clk 0:00:36]} 35. Bxc6 {[%clk 0:01:50]}  bxc6 {[%clk 0:00:35]} 36. Rxc6 {[%clk 0:01:51]}  Rb8 {[%clk 0:00:31]} 37. Rd2 {[%clk 0:01:50]}  Nd8 {[%clk 0:00:24]} 38. Rc7 {[%clk 0:01:48]}  Bd6 {[%clk 0:00:23]} 39. Rd7 {[%clk 0:01:48]}  Bf8 {[%clk 0:00:12]} 40. Rxd5 {[%clk 0:01:47]}  Nc6 {[%clk 0:00:12]} 41. Rc2 {[%clk 0:01:45]}  Nd8 {[%clk 0:00:06]} 42. Rd7 {[%clk 0:01:41]}  Kg8 {[%clk 0:00:05]} 43. d5 {[%clk 0:01:39]}  Nb7 {[%clk 0:00:05]} 44. Be5 {[%clk 0:01:36]}  Rd8 {[%clk 0:00:03]} 45. Rxb7 {[%clk 0:01:34]}  Rxd5 {[%clk 0:00:03]} 46. Bd4 {[%clk 0:01:34]}  Ra5 {[%clk 0:00:03]} 47. Rb8 {[%clk 0:01:33]} 1-0


[Site "https://www.chess.com"]

[Event "Titled Tuesday Blitz June 21 Early 2022"]
[White "Molina, Roberto Junio Brito"]
[Black "Tasev, Dejan"]
[WhiteFideId "2109450"]
[BlackFideId "936618"]
[WhiteElo "2432"]
[BlackElo "2253"]
[Result "1-0"]
[Round "08"]
[TimeControl "180+1"]
[Date "2022.06.21"]
[WhiteClock "0:01:04"]
[BlackClock "0:00:36"]

1. d4 {[%clk 0:03:00]}  Nf6 {[%clk 0:02:59]} 2. c4 {[%clk 0:03:01]}  g6 {[%clk 0:02:59]} 3. Nc3 {[%clk 0:02:57]}  Bg7 {[%clk 0:02:57]} 4. e4 {[%clk 0:02:57]}  d6 {[%clk 0:02:57]} 5. f3 {[%clk 0:02:57]}  O-O {[%clk 0:02:57]} 6. Be3 {[%clk 0:02:57]}  c5 {[%clk 0:02:58]} 7. dxc5 {[%clk 0:02:56]}  dxc5 {[%clk 0:02:58]} 8. Qxd8 {[%clk 0:02:57]}  Rxd8 {[%clk 0:02:57]} 9. Bxc5 {[%clk 0:02:58]}  Nc6 {[%clk 0:02:58]} 10. Nd5 {[%clk 0:02:58]}  e6 {[%clk 0:02:50]} 11. Ne7+ {[%clk 0:02:52]}  Nxe7 {[%clk 0:02:45]} 12. Bxe7 {[%clk 0:02:53]}  Re8 {[%clk 0:02:40]} 13. Bb4 {[%clk 0:02:48]}  b6 {[%clk 0:02:34]} 14. O-O-O {[%clk 0:02:47]}  Ba6 {[%clk 0:02:32]} 15. Kb1 {[%clk 0:02:42]}  Rac8 {[%clk 0:02:31]} 16. b3 {[%clk 0:02:42]}  Red8 {[%clk 0:02:29]} 17. Rxd8+ {[%clk 0:02:40]}  Rxd8 {[%clk 0:02:28]} 18. Kc2 {[%clk 0:02:41]}  Nd7 {[%clk 0:02:25]} 19. Ne2 {[%clk 0:02:36]}  Nb8 {[%clk 0:02:17]} 20. Bc3 {[%clk 0:02:34]}  e5 {[%clk 0:02:16]} 21. Nc1 {[%clk 0:02:31]}  Nc6 {[%clk 0:02:15]} 22. Nd3 {[%clk 0:02:28]}  Nd4+ {[%clk 0:02:14]} 23. Bxd4 {[%clk 0:02:26]}  Rxd4 {[%clk 0:02:13]} 24. Be2 {[%clk 0:02:25]}  f6 {[%clk 0:02:13]} 25. Nb4 {[%clk 0:02:24]}  Bb7 {[%clk 0:02:10]} 26. Rd1 {[%clk 0:02:22]}  Rxd1 {[%clk 0:02:06]} 27. Kxd1 {[%clk 0:02:23]}  Bf8 {[%clk 0:02:06]} 28. Nd3 {[%clk 0:02:18]}  a5 {[%clk 0:02:05]} 29. Kd2 {[%clk 0:02:18]}  Bc5 {[%clk 0:02:02]} 30. g4 {[%clk 0:02:13]}  Bd4 {[%clk 0:01:58]} 31. Kc2 {[%clk 0:02:09]}  Kf7 {[%clk 0:01:51]} 32. a3 {[%clk 0:02:08]}  Ke6 {[%clk 0:01:49]} 33. b4 {[%clk 0:02:08]}  Bc6 {[%clk 0:01:45]} 34. Kb3 {[%clk 0:02:08]}  g5 {[%clk 0:01:42]} 35. h3 {[%clk 0:02:07]}  h6 {[%clk 0:01:42]} 36. Nb2 {[%clk 0:01:54]}  Bxb2 {[%clk 0:01:27]} 37. Kxb2 {[%clk 0:01:55]}  axb4 {[%clk 0:01:26]} 38. axb4 {[%clk 0:01:54]}  Kd6 {[%clk 0:01:27]} 39. Bd1 {[%clk 0:01:50]}  Bd7 {[%clk 0:01:23]} 40. Ka3 {[%clk 0:01:49]}  b5 {[%clk 0:01:00]} 41. Be2 {[%clk 0:01:41]}  bxc4 {[%clk 0:00:58]} 42. Bxc4 {[%clk 0:01:42]}  Kc6 {[%clk 0:00:57]} 43. Kb3 {[%clk 0:01:42]}  Kb6 {[%clk 0:00:57]} 44. Kc3 {[%clk 0:01:42]}  Ba4 {[%clk 0:00:57]} 45. Be2 {[%clk 0:01:38]}  Bc6 {[%clk 0:00:55]} 46. Bf1 {[%clk 0:01:31]}  Ba4 {[%clk 0:00:55]} 47. Kd2 {[%clk 0:01:29]}  Bc6 {[%clk 0:00:52]} 48. Bc4 {[%clk 0:01:28]}  Ba4 {[%clk 0:00:52]} 49. Kd3 {[%clk 0:01:28]}  Bd1 {[%clk 0:00:51]} 50. Ke3 {[%clk 0:01:28]}  Ba4 {[%clk 0:00:51]} 51. Ke2 {[%clk 0:01:27]}  Bb5 {[%clk 0:00:43]} 52. Kd3 {[%clk 0:01:26]}  Ba4 {[%clk 0:00:43]} 53. Kd2 {[%clk 0:01:23]}  Bd7 {[%clk 0:00:43]} 54. Ke3 {[%clk 0:01:13]}  Ba4 {[%clk 0:00:42]} 55. h4 {[%clk 0:01:08]}  Bd7 {[%clk 0:00:38]} 56. h5 {[%clk 0:01:06]}  Ba4 {[%clk 0:00:38]} 57. Kd2 {[%clk 0:01:06]}  Bd7 {[%clk 0:00:38]} 58. Kc3 {[%clk 0:01:06]}  Ba4 {[%clk 0:00:38]} 59. Bb3 {[%clk 0:01:06]}  Bb5 {[%clk 0:00:38]} 60. Bd1 {[%clk 0:01:05]}  Bc6 {[%clk 0:00:37]} 61. Kc4 {[%clk 0:01:05]}  Bb7 {[%clk 0:00:38]} 62. b5 {[%clk 0:01:04]}  Ba8 {[%clk 0:00:36]} 63. Kb4 {[%clk 0:01:04]}  Bb7 {[%clk 0:00:36]} 64. Bb3 {[%clk 0:01:04]}  Ba8 {[%clk 0:00:36]} 65. Bd5 {[%clk 0:01:04]}  Bxd5 {[%clk 0:00:36]} 66. exd5 {[%clk 0:01:04]} 1-0


[Site "https://www.chess.com"]

[Event "Titled Tuesday Blitz June 21 Early 2022"]
[White "Namitbir Singh Walia"]
[Black "Jakubowski, Krzysztof"]
[WhiteFideId "35071068"]
[BlackFideId "1112848"]
[WhiteElo "1565"]
[BlackElo "2365"]
[Result "1-0"]
[Round "08"]
[TimeControl "180+1"]
[Date "2022.06.21"]
[WhiteClock "0:00:33"]
[BlackClock "0:00:01"]

1. d4 {[%clk 0:03:00]}  Nf6 {[%clk 0:02:57]} 2. c4 {[%clk 0:03:00]}  e6 {[%clk 0:02:57]} 3. Nf3 {[%clk 0:03:01]}  Bb4+ {[%clk 0:02:55]} 4. Bd2 {[%clk 0:03:00]}  a5 {[%clk 0:02:55]} 5. g3 {[%clk 0:03:00]}  d6 {[%clk 0:02:54]} 6. Bg2 {[%clk 0:02:59]}  Nbd7 {[%clk 0:02:55]} 7. O-O {[%clk 0:02:59]}  e5 {[%clk 0:02:55]} 8. Nc3 {[%clk 0:02:37]}  O-O {[%clk 0:02:53]} 9. a3 {[%clk 0:02:28]}  Bxc3 {[%clk 0:02:51]} 10. Bxc3 {[%clk 0:02:29]}  Qe7 {[%clk 0:02:38]} 11. Qc2 {[%clk 0:02:12]}  e4 {[%clk 0:02:23]} 12. Nd2 {[%clk 0:02:07]}  e3 {[%clk 0:02:20]} 13. Ne4 {[%clk 0:02:03]}  Nxe4 {[%clk 0:01:55]} 14. Qxe4 {[%clk 0:02:02]}  Qxe4 {[%clk 0:01:52]} 15. Bxe4 {[%clk 0:02:03]}  exf2+ {[%clk 0:01:51]} 16. Kxf2 {[%clk 0:01:54]}  a4 {[%clk 0:01:50]} 17. Bf3 {[%clk 0:01:49]}  Re8 {[%clk 0:01:38]} 18. e4 {[%clk 0:01:48]}  Nb6 {[%clk 0:01:33]} 19. c5 {[%clk 0:01:41]}  dxc5 {[%clk 0:01:30]} 20. dxc5 {[%clk 0:01:42]}  Nc4 {[%clk 0:01:30]} 21. Rad1 {[%clk 0:01:41]}  Be6 {[%clk 0:01:17]} 22. Rd4 {[%clk 0:01:36]}  Ne5 {[%clk 0:01:08]} 23. Bg2 {[%clk 0:01:29]}  Ng4+ {[%clk 0:00:59]} 24. Kg1 {[%clk 0:01:22]}  Ne3 {[%clk 0:00:55]} 25. Rf2 {[%clk 0:01:20]}  Nxg2 {[%clk 0:00:34]} 26. Kxg2 {[%clk 0:01:17]}  h5 {[%clk 0:00:33]} 27. Rfd2 {[%clk 0:01:12]}  Kh7 {[%clk 0:00:32]} 28. Rb4 {[%clk 0:01:10]}  Ra7 {[%clk 0:00:22]} 29. Rdd4 {[%clk 0:01:05]}  c6 {[%clk 0:00:06]} 30. Rxa4 {[%clk 0:01:03]}  Rxa4 {[%clk 0:00:06]} 31. Rxa4 {[%clk 0:01:04]}  Bg4 {[%clk 0:00:04]} 32. Rb4 {[%clk 0:01:01]}  Re7 {[%clk 0:00:03]} 33. h3 {[%clk 0:01:00]}  Bd1 {[%clk 0:00:02]} 34. Rd4 {[%clk 0:00:58]}  Bc2 {[%clk 0:00:02]} 35. Kf3 {[%clk 0:00:59]}  Kg6 {[%clk 0:00:02]} 36. Kf4 {[%clk 0:00:59]}  f6 {[%clk 0:00:02]} 37. Rc4 {[%clk 0:00:42]}  Bd3 {[%clk 0:00:02]} 38. Rb4 {[%clk 0:00:41]}  Bc2 {[%clk 0:00:01]} 39. e5 {[%clk 0:00:33]} 1-0


[Site "https://www.chess.com"]

[Event "Titled Tuesday Blitz June 21 Early 2022"]
[White "Nasir, Zehn"]
[Black "Gabrielian, Artur"]
[WhiteFideId "2613239"]
[BlackFideId "4131002"]
[WhiteElo "1993"]
[BlackElo "2440"]
[Result "0-1"]
[Round "08"]
[TimeControl "180+1"]
[Date "2022.06.21"]
[WhiteClock "0:00:12"]
[BlackClock "0:00:51"]

1. d4 {[%clk 0:02:53]}  Nf6 {[%clk 0:02:59]} 2. Bf4 {[%clk 0:02:52]}  g6 {[%clk 0:02:59]} 3. Nc3 {[%clk 0:02:50]}  d5 {[%clk 0:02:59]} 4. Nf3 {[%clk 0:02:47]}  Bg7 {[%clk 0:02:59]} 5. Qd2 {[%clk 0:02:46]}  O-O {[%clk 0:02:59]} 6. O-O-O {[%clk 0:02:47]}  c5 {[%clk 0:02:56]} 7. e3 {[%clk 0:02:47]}  cxd4 {[%clk 0:02:55]} 8. exd4 {[%clk 0:02:46]}  Nc6 {[%clk 0:02:55]} 9. Ne5 {[%clk 0:02:44]}  Bf5 {[%clk 0:02:52]} 10. f3 {[%clk 0:02:31]}  h5 {[%clk 0:02:50]} 11. Be2 {[%clk 0:02:15]}  Rc8 {[%clk 0:02:49]} 12. g4 {[%clk 0:02:13]}  hxg4 {[%clk 0:02:49]} 13. fxg4 {[%clk 0:02:14]}  Ne4 {[%clk 0:02:43]} 14. Qe3 {[%clk 0:01:59]}  Nxc3 {[%clk 0:02:42]} 15. bxc3 {[%clk 0:01:52]}  Be4 {[%clk 0:02:41]} 16. Rhf1 {[%clk 0:01:44]}  Nxe5 {[%clk 0:02:35]} 17. Bxe5 {[%clk 0:01:43]}  Qa5 {[%clk 0:02:31]} 18. Kd2 {[%clk 0:01:24]}  Bxe5 {[%clk 0:02:00]} 19. dxe5 {[%clk 0:01:23]}  Rfd8 {[%clk 0:01:55]} 20. e6 {[%clk 0:01:01]}  fxe6 {[%clk 0:01:49]} 21. Bd3 {[%clk 0:00:47]}  Qxc3+ {[%clk 0:01:40]} 22. Ke2 {[%clk 0:00:47]}  Qe5 {[%clk 0:01:31]} 23. Bxe4 {[%clk 0:00:39]}  dxe4 {[%clk 0:01:31]} 24. Rxd8+ {[%clk 0:00:29]}  Rxd8 {[%clk 0:01:30]} 25. Qh6 {[%clk 0:00:27]}  Qb5+ {[%clk 0:01:18]} 26. Ke1 {[%clk 0:00:19]}  Qb1+ {[%clk 0:00:58]} 27. Kf2 {[%clk 0:00:18]}  Qxc2+ {[%clk 0:00:58]} 28. Kg3 {[%clk 0:00:17]}  Rd3+ {[%clk 0:00:52]} 29. Kf4 {[%clk 0:00:13]}  Qd2+ {[%clk 0:00:51]} 30. Ke5 {[%clk 0:00:12]}  Qxh6 {[%clk 0:00:51]} 0-1


[Site "https://www.chess.com"]

[Event "Titled Tuesday Blitz June 21 Early 2022"]
[White "Nesterov, Arseniy"]
[Black "Yang, Kaiqi"]
[WhiteFideId "24198455"]
[BlackFideId "8604398"]
[WhiteElo "2489"]
[BlackElo "2373"]
[Result "1/2-1/2"]
[Round "08"]
[TimeControl "180+1"]
[Date "2022.06.21"]
[WhiteClock "0:01:14"]
[BlackClock "0:01:36"]

1. d4 {[%clk 0:03:00]}  Nf6 {[%clk 0:02:57]} 2. c4 {[%clk 0:03:01]}  e6 {[%clk 0:02:57]} 3. Nf3 {[%clk 0:03:00]}  d5 {[%clk 0:02:57]} 4. Nc3 {[%clk 0:03:00]}  c6 {[%clk 0:02:58]} 5. e3 {[%clk 0:02:59]}  Nbd7 {[%clk 0:02:58]} 6. Bd3 {[%clk 0:03:00]}  dxc4 {[%clk 0:02:57]} 7. Bxc4 {[%clk 0:03:01]}  b5 {[%clk 0:02:58]} 8. Bd3 {[%clk 0:03:01]}  Bb7 {[%clk 0:02:58]} 9. O-O {[%clk 0:03:00]}  Bd6 {[%clk 0:02:58]} 10. b3 {[%clk 0:02:59]}  O-O {[%clk 0:02:57]} 11. Bb2 {[%clk 0:02:58]}  a6 {[%clk 0:02:43]} 12. a4 {[%clk 0:02:58]}  b4 {[%clk 0:02:43]} 13. Ne4 {[%clk 0:02:58]}  Nxe4 {[%clk 0:02:43]} 14. Bxe4 {[%clk 0:02:59]}  Nf6 {[%clk 0:02:43]} 15. Bd3 {[%clk 0:03:00]}  c5 {[%clk 0:02:43]} 16. dxc5 {[%clk 0:03:01]}  Bxc5 {[%clk 0:02:43]} 17. Qe2 {[%clk 0:03:01]}  Qe7 {[%clk 0:02:33]} 18. Rac1 {[%clk 0:03:01]}  a5 {[%clk 0:02:23]} 19. Bxf6 {[%clk 0:02:57]}  gxf6 {[%clk 0:02:23]} 20. Bxh7+ {[%clk 0:02:54]}  Kxh7 {[%clk 0:02:16]} 21. Qc2+ {[%clk 0:02:53]}  f5 {[%clk 0:02:17]} 22. Qxc5 {[%clk 0:02:53]}  Qxc5 {[%clk 0:02:17]} 23. Rxc5 {[%clk 0:02:54]}  Bxf3 {[%clk 0:02:17]} 24. gxf3 {[%clk 0:02:54]}  Rfd8 {[%clk 0:02:14]} 25. Rb1 {[%clk 0:02:49]}  Rd2 {[%clk 0:02:01]} 26. Kf1 {[%clk 0:02:42]}  Kg6 {[%clk 0:02:00]} 27. f4 {[%clk 0:02:08]}  Kf6 {[%clk 0:01:58]} 28. Kg2 {[%clk 0:02:06]}  Rg8+ {[%clk 0:01:45]} 29. Kf3 {[%clk 0:02:06]}  Rh8 {[%clk 0:01:45]} 30. Kg3 {[%clk 0:01:21]}  Rg8+ {[%clk 0:01:43]} 31. Kf3 {[%clk 0:01:21]}  Rh8 {[%clk 0:01:38]} 32. Kg2 {[%clk 0:01:16]}  Rg8+ {[%clk 0:01:36]} 33. Kf3 {[%clk 0:01:14]} 1/2-1/2


[Site "https://www.chess.com"]

[Event "Titled Tuesday Blitz June 21 Early 2022"]
[White "Nunez V, Gustavo Eduardo"]
[Black "Tinmaz, Kerem"]
[WhiteFideId "4403690"]
[BlackFideId "44559151"]
[WhiteElo "2228"]
[BlackElo "1443"]
[Result "0-1"]
[Round "08"]
[TimeControl "180+1"]
[Date "2022.06.21"]
[WhiteClock "0:00:01"]
[BlackClock "0:00:06"]

1. e4 {[%clk 0:03:00]}  c6 {[%clk 0:02:59]} 2. d4 {[%clk 0:03:00]}  d5 {[%clk 0:03:00]} 3. Nc3 {[%clk 0:02:57]}  dxe4 {[%clk 0:02:59]} 4. Nxe4 {[%clk 0:02:58]}  Bf5 {[%clk 0:03:00]} 5. Ng3 {[%clk 0:02:56]}  Bg6 {[%clk 0:03:00]} 6. h4 {[%clk 0:02:56]}  h6 {[%clk 0:03:01]} 7. Nh3 {[%clk 0:02:54]}  e6 {[%clk 0:02:46]} 8. h5 {[%clk 0:02:51]}  Bh7 {[%clk 0:02:46]} 9. Bf4 {[%clk 0:02:51]}  Bd6 {[%clk 0:02:40]} 10. c3 {[%clk 0:02:49]}  Ne7 {[%clk 0:02:37]} 11. Bd3 {[%clk 0:02:44]}  Bxd3 {[%clk 0:02:35]} 12. Qxd3 {[%clk 0:02:45]}  Nd5 {[%clk 0:02:26]} 13. Be5 {[%clk 0:02:39]}  Bxe5 {[%clk 0:02:18]} 14. dxe5 {[%clk 0:02:40]}  Nd7 {[%clk 0:02:13]} 15. Ne4 {[%clk 0:02:40]}  Nxe5 {[%clk 0:01:37]} 16. Qd4 {[%clk 0:02:39]}  Qc7 {[%clk 0:01:19]} 17. f4 {[%clk 0:02:35]}  Nd7 {[%clk 0:00:49]} 18. Qxg7 {[%clk 0:02:09]}  Ke7 {[%clk 0:00:50]} 19. Qd4 {[%clk 0:00:57]}  Nxf4 {[%clk 0:00:49]} 20. Nxf4 {[%clk 0:00:54]}  Qxf4 {[%clk 0:00:49]} 21. Rf1 {[%clk 0:00:55]}  Qe5 {[%clk 0:00:48]} 22. O-O-O {[%clk 0:00:36]}  Qxd4 {[%clk 0:00:32]} 23. Rxd4 {[%clk 0:00:37]}  Ne5 {[%clk 0:00:22]} 24. Nc5 {[%clk 0:00:16]}  b6 {[%clk 0:00:20]} 25. Nb3 {[%clk 0:00:13]}  Rad8 {[%clk 0:00:20]} 26. Rh4 {[%clk 0:00:11]}  Rhg8 {[%clk 0:00:18]} 27. Rh2 {[%clk 0:00:09]}  Rg5 {[%clk 0:00:17]} 28. Nd4 {[%clk 0:00:09]}  c5 {[%clk 0:00:16]} 29. Nf3 {[%clk 0:00:09]}  Nxf3 {[%clk 0:00:16]} 30. Rxf3 {[%clk 0:00:10]}  Rdg8 {[%clk 0:00:16]} 31. Rf2 {[%clk 0:00:08]}  Rg3 {[%clk 0:00:12]} 32. Rd2 {[%clk 0:00:08]}  R8g5 {[%clk 0:00:12]} 33. Kc2 {[%clk 0:00:08]}  f5 {[%clk 0:00:09]} 34. b3 {[%clk 0:00:08]}  e5 {[%clk 0:00:09]} 35. Re2 {[%clk 0:00:08]}  Ke6 {[%clk 0:00:09]} 36. a4 {[%clk 0:00:06]}  e4 {[%clk 0:00:09]} 37. Kd2 {[%clk 0:00:06]}  Ke5 {[%clk 0:00:09]} 38. Rh4 {[%clk 0:00:05]}  Rxg2 {[%clk 0:00:09]} 39. Rh2 {[%clk 0:00:05]}  Rxe2+ {[%clk 0:00:08]} 40. Rxe2 {[%clk 0:00:05]}  Rxh5 {[%clk 0:00:08]} 41. Rg2 {[%clk 0:00:04]}  Rg5 {[%clk 0:00:08]} 42. Rh2 {[%clk 0:00:04]}  h5 {[%clk 0:00:09]} 43. b4 {[%clk 0:00:04]}  f4 {[%clk 0:00:09]} 44. bxc5 {[%clk 0:00:04]}  bxc5 {[%clk 0:00:10]} 45. a5 {[%clk 0:00:05]}  e3+ {[%clk 0:00:06]} 46. Kd3 {[%clk 0:00:05]}  c4+ {[%clk 0:00:05]} 47. Kxc4 {[%clk 0:00:04]}  f3 {[%clk 0:00:04]} 48. Kd3 {[%clk 0:00:04]}  e2 {[%clk 0:00:05]} 49. Rh1 {[%clk 0:00:03]}  Kf4 {[%clk 0:00:05]} 50. Rh4+ {[%clk 0:00:02]}  Kg3 {[%clk 0:00:05]} 51. Re4 {[%clk 0:00:02]}  Rd5+ {[%clk 0:00:05]} 52. Ke3 {[%clk 0:00:02]}  Rd1 {[%clk 0:00:05]} 53. Rg4+ {[%clk 0:00:01]}  hxg4 {[%clk 0:00:05]} 54. c4 {[%clk 0:00:01]}  e1=Q# {[%clk 0:00:06]} 0-1


[Site "https://www.chess.com"]

[Event "Titled Tuesday Blitz June 21 Early 2022"]
[White "Papasimakopoulos, Alexandros"]
[Black "Grischuk, Alexander"]
[WhiteFideId "4244125"]
[BlackFideId "4126025"]
[WhiteElo "2340"]
[BlackElo "2762"]
[Result "0-1"]
[Round "08"]
[TimeControl "180+1"]
[Date "2022.06.21"]
[WhiteClock "0:00:31"]
[BlackClock "0:01:20"]

1. d4 {[%clk 0:03:00]}  Nf6 {[%clk 0:02:59]} 2. c4 {[%clk 0:03:01]}  g6 {[%clk 0:03:00]} 3. Nc3 {[%clk 0:03:01]}  Bg7 {[%clk 0:03:00]} 4. Bg5 {[%clk 0:03:01]}  d6 {[%clk 0:02:54]} 5. e3 {[%clk 0:03:01]}  Nbd7 {[%clk 0:02:46]} 6. Be2 {[%clk 0:02:59]}  c5 {[%clk 0:02:46]} 7. d5 {[%clk 0:02:58]}  Qa5 {[%clk 0:02:45]} 8. Qd2 {[%clk 0:02:58]}  a6 {[%clk 0:02:45]} 9. Nf3 {[%clk 0:02:41]}  b5 {[%clk 0:02:45]} 10. cxb5 {[%clk 0:02:41]}  axb5 {[%clk 0:02:45]} 11. Bxb5 {[%clk 0:02:38]}  O-O {[%clk 0:02:44]} 12. Be2 {[%clk 0:02:27]}  Ba6 {[%clk 0:02:42]} 13. O-O {[%clk 0:02:26]}  Rfb8 {[%clk 0:02:41]} 14. Rfe1 {[%clk 0:02:21]}  h6 {[%clk 0:02:40]} 15. Bh4 {[%clk 0:02:21]}  g5 {[%clk 0:02:29]} 16. Bg3 {[%clk 0:02:21]}  Nh5 {[%clk 0:02:27]} 17. Bxa6 {[%clk 0:02:14]}  Rxa6 {[%clk 0:02:28]} 18. Qc2 {[%clk 0:02:05]}  Rab6 {[%clk 0:02:12]} 19. Rab1 {[%clk 0:02:04]}  Bxc3 {[%clk 0:02:07]} 20. bxc3 {[%clk 0:02:03]}  Rxb1 {[%clk 0:02:08]} 21. Rxb1 {[%clk 0:02:03]}  Rxb1+ {[%clk 0:02:09]} 22. Qxb1 {[%clk 0:02:04]}  Qxc3 {[%clk 0:02:09]} 23. Qd1 {[%clk 0:01:30]}  Ndf6 {[%clk 0:02:07]} 24. a4 {[%clk 0:01:14]}  Ne4 {[%clk 0:01:50]} 25. Ne1 {[%clk 0:01:04]}  Nhf6 {[%clk 0:01:47]} 26. Qe2 {[%clk 0:00:49]}  Nxd5 {[%clk 0:01:44]} 27. Kf1 {[%clk 0:00:44]}  Kg7 {[%clk 0:01:29]} 28. Qa2 {[%clk 0:00:39]}  Nb4 {[%clk 0:01:26]} 29. Qe2 {[%clk 0:00:35]}  c4 {[%clk 0:01:26]} 30. f3 {[%clk 0:00:34]}  Nxg3+ {[%clk 0:01:26]} 31. hxg3 {[%clk 0:00:35]}  Nd3 {[%clk 0:01:21]} 32. Nxd3 {[%clk 0:00:31]}  cxd3 {[%clk 0:01:22]} 33. Qa2 {[%clk 0:00:30]}  Qc1+ {[%clk 0:01:19]} 34. Kf2 {[%clk 0:00:31]}  d2 {[%clk 0:01:20]} 0-1


[Site "https://www.chess.com"]

[Event "Titled Tuesday Blitz June 21 Early 2022"]
[White "Paravyan, David"]
[Black "Lazavik, Denis"]
[WhiteFideId "4194985"]
[BlackFideId "13515110"]
[WhiteElo "2569"]
[BlackElo "2437"]
[Result "1-0"]
[Round "08"]
[TimeControl "180+1"]
[Date "2022.06.21"]
[WhiteClock "0:02:20"]
[BlackClock "0:00:15"]

1. e4 {[%clk 0:03:00]}  e5 {[%clk 0:02:59]} 2. Nf3 {[%clk 0:03:00]}  Nc6 {[%clk 0:03:00]} 3. Nc3 {[%clk 0:03:01]}  Nf6 {[%clk 0:03:00]} 4. d4 {[%clk 0:03:02]}  exd4 {[%clk 0:03:01]} 5. Nxd4 {[%clk 0:03:03]}  Bb4 {[%clk 0:03:01]} 6. Nxc6 {[%clk 0:03:03]}  bxc6 {[%clk 0:03:02]} 7. Bd3 {[%clk 0:03:04]}  O-O {[%clk 0:03:02]} 8. O-O {[%clk 0:03:04]}  d5 {[%clk 0:03:02]} 9. exd5 {[%clk 0:03:05]}  cxd5 {[%clk 0:03:03]} 10. Bg5 {[%clk 0:03:06]}  c6 {[%clk 0:03:03]} 11. Qf3 {[%clk 0:03:06]}  h6 {[%clk 0:03:03]} 12. Bxf6 {[%clk 0:03:06]}  Qxf6 {[%clk 0:03:04]} 13. Qxf6 {[%clk 0:03:07]}  gxf6 {[%clk 0:03:05]} 14. Ne2 {[%clk 0:03:07]}  Bd6 {[%clk 0:02:53]} 15. Nd4 {[%clk 0:03:06]}  c5 {[%clk 0:02:34]} 16. Nf5 {[%clk 0:03:06]}  Bxf5 {[%clk 0:02:33]} 17. Bxf5 {[%clk 0:03:06]}  Be5 {[%clk 0:02:30]} 18. Rab1 {[%clk 0:03:05]}  Rab8 {[%clk 0:02:27]} 19. b3 {[%clk 0:03:06]}  Rfe8 {[%clk 0:02:22]} 20. Rbd1 {[%clk 0:03:05]}  Rbd8 {[%clk 0:02:21]} 21. g3 {[%clk 0:02:59]}  c4 {[%clk 0:02:14]} 22. Rfe1 {[%clk 0:02:56]}  Kf8 {[%clk 0:02:08]} 23. Bg4 {[%clk 0:02:48]}  cxb3 {[%clk 0:01:55]} 24. axb3 {[%clk 0:02:47]}  Bc3 {[%clk 0:01:55]} 25. Rxe8+ {[%clk 0:02:46]}  Kxe8 {[%clk 0:01:56]} 26. Rd3 {[%clk 0:02:45]}  d4 {[%clk 0:01:53]} 27. Rf3 {[%clk 0:02:45]}  Ke7 {[%clk 0:01:50]} 28. Bf5 {[%clk 0:02:45]}  a5 {[%clk 0:01:43]} 29. Bd3 {[%clk 0:02:44]}  Rd5 {[%clk 0:01:42]} 30. Rf4 {[%clk 0:02:43]}  Bd2 {[%clk 0:01:29]} 31. Rh4 {[%clk 0:02:39]}  Kf8 {[%clk 0:01:28]} 32. Re4 {[%clk 0:02:38]}  Bc3 {[%clk 0:01:26]} 33. Kg2 {[%clk 0:02:38]}  Re5 {[%clk 0:01:24]} 34. Rh4 {[%clk 0:02:38]}  Kg7 {[%clk 0:01:24]} 35. f4 {[%clk 0:02:30]}  Re1 {[%clk 0:01:21]} 36. Rh5 {[%clk 0:02:29]}  Re7 {[%clk 0:01:08]} 37. Rd5 {[%clk 0:02:27]}  Rc7 {[%clk 0:01:06]} 38. Kf3 {[%clk 0:02:27]}  Re7 {[%clk 0:01:00]} 39. Kg4 {[%clk 0:02:25]}  Ra7 {[%clk 0:00:58]} 40. Rd6 {[%clk 0:02:20]}  a4 {[%clk 0:00:47]} 41. bxa4 {[%clk 0:02:21]}  Rxa4 {[%clk 0:00:48]} 42. Rd7 {[%clk 0:02:20]}  Kf8 {[%clk 0:00:21]} 43. Kh5 {[%clk 0:02:20]}  Kg7 {[%clk 0:00:20]} 44. Be4 {[%clk 0:02:20]}  Ra8 {[%clk 0:00:15]} 45. Bxa8 {[%clk 0:02:20]} 1-0


[Site "https://www.chess.com"]